Cogmind - Beta 13 @@@ ROGUE MODE // 2024.04.24 @ 20:28:49 Player: JackZewap Result: Destroyed by G-34 Mercenary with Small Laser Performance ------------- Evolutions (1) 500 Regions Visited (2) 400 Robots Destroyed (76) 380 Value Destroyed (1981) 1981 Prototype IDs (3) 60 Alien Tech Used (0) 0 Bonus (148) 148 TOTAL SCORE: 3469 Bonus ------- High Alert Combat Kills 148 Cogmind --------- Core Integrity 0/400 Matter 300/300 Energy 100/100 System Corruption 0% Temperature Cool (12) Movement Walking (400) Ox4 Location -9/Materials Parts ------- > --- POWER (1) -------- (None) > --- PROPULSION (2) --- Aluminum Leg Aluminum Leg > --- UTILITY (4) ------ Huge Storage Unit Machine Analyzer Signal Interpreter Hardened Light Armor Plating > --- WEAPON (2) ------- Light Assault Rifle Heavy Assault Rifle > --- INVENTORY (25) --- Light Nuclear Core Light Treads Light Treads Aluminum Leg Compact Wheel Heat Sink Improved Heat Sink Compact Battery (200) Compact Battery (200) Medium Matter Pod (100) Weight Redist. System Visual Processing Unit Signal Interpreter Light Armor Plating Hacking Suite Hacking Suite Recalibrator Heavy Assault Rifle Heavy Assault Rifle EMP Blaster EMP Blaster Heavy Hammer Peak State ------------ > --- POWER ------------ Heavy Ion Engine > --- PROPULSION ------- Improved Treads Improved Treads > --- UTILITY ---------- Huge Storage Unit Machine Analyzer Sensor Array Signal Interpreter > --- WEAPON ----------- Heavy Assault Rifle Heavy Assault Rifle > --- INVENTORY -------- Light Nuclear Core Light Treads Light Treads Aluminum Leg Compact Wheel Heat Sink Small Storage Unit Large Storage Unit High-capacity Storage Unit Medium Matter Pod Weight Redist. System Visual Processing Unit Sensor Array Signal Interpreter Hardened Light Armor Plating Hacking Suite Hacking Suite Recalibrator Light Assault Rifle Light Assault Rifle Heavy Assault Rifle Heavy Assault Rifle EMP Blaster EMP Blaster Mining Laser [Rating: 21] Favorites ----------- Power Heavy Ion Engine Engine Heavy Ion Engine Power Core Light Nuclear Core Propulsion Improved Treads Treads Improved Treads Leg Improved Aluminum Leg Wheel Wheel Utility Huge Storage Unit Device Sensor Array Storage Huge Storage Unit Processor Machine Analyzer Protection Light Armor Plating Weapon Heavy Assault Rifle Energy Gun Small Laser Ballistic Gun Heavy Assault Rifle Special Weapon Mining Laser Build | -11 -10 -9 ------- Run | Yrd Mat Mat Slots Evolved 2 | . . 2 Power . | . . . Propulsion . | . . . Utility 2 | . . 2 Weapon . | . . . Parts Attached 60 | 6 7 47 Power 4 | 1 1 2 Engine 3 | 1 1 1 Core 1 | . . 1 Reactor . | . . . Propulsion 19 | 2 4 13 Treads 5 | . . 5 Leg 6 | . 2 4 Wheel 8 | 2 2 4 Hover . | . . . Flight . | . . . Utility 18 | 1 2 15 Device 6 | . 1 5 Storage 4 | 1 1 2 Processor 2 | . . 2 Hackware . | . . . Protection 6 | . . 6 Artifact . | . . . Weapon 19 | 2 . 17 Energy Gun 2 | 2 . . Energy Cannon . | . . . Ballistic Gun 13 | . . 13 Ballistic Cannon . | . . . Launcher . | . . . Special Weapon 4 | . . 4 Impact Weapon . | . . . Slashing Weapon . | . . . Piercing Weapon . | . . . Special Melee Weapon . | . . . Unidentified Prototypes 1 | . . 1 Parts Lost 17 | . . 17 Power 2 | . . 2 Propulsion 7 | . . 7 Utility 5 | . . 5 Weapon 3 | . . 3 Highest Loss Streak 4 | . . 4 To Critical Strikes . | . . . Average Slot Usage (%) 97 | . 98 97 Engine 10 | . 14 9 Core 1 | . . 1 Treads 13 | . . 15 Leg 4 | . 12 3 Wheel 4 | . 15 2 Device 8 | . 12 7 Storage 11 | . 14 11 Processor 16 | . . 18 Protection 4 | . . 4 Energy Gun 4 | . 28 1 Ballistic Gun 16 | . . 19 Special Weapon 1 | . . 1 Naked Turns . | . . . Heaviest Build 100 | 13 29 100 Greatest Support 46 | 20 26 46 Greatest Overweight (x) 9 | . 2 9 Average Overweight (x) 2 | . . 2 Largest Inventory Capacity 25 | 8 15 25 Average Capacity 23 | 7 12 24 Most Carried 25 | . 13 25 Average Carried 20 | . 9 22 Final Capacity 25 | 8 15 25 Final Carried 22 | . 13 22 Class Distribution -------------------- 46% | Skirmisher 36% | Scavenger-Mutant 16% | Mutant Dominant Class ---------------- Mutant | -10/Materials Skirmisher | -9/Materials Resources | -11 -10 -9 ----------- Run | Yrd Mat Mat Matter Collected 1640 | 189 159 1292 Remotely . | . . . Salvage Created 2843 | . 466 2377 Parts 180 | . 31 149 Haulers Intercepted 5 | . 1 4 Recyclers Shooed . | . . . Parts Field Recycled . | . . . Retrieved Matter . | . . . Parts Self-Destructed . | . . . Prevented . | . . . Kills | -11 -10 -9 ------- Run | Yrd Mat Mat Combat Hostiles Destroyed 60 | . 11 49 Guns 60 | . 11 49 Classes Destroyed 10 | . 6 4 Worker 1 | . 1 . Hauler 5 | . 1 4 Recycler 3 | . . 3 Mechanic 1 | . . 1 Operator 4 | . 1 3 Watcher 4 | . 2 2 Swarmer 15 | . 3 12 Grunt 34 | . 8 26 Protector 1 | . . 1 Sentry 10 | . . 10 Best Kill Streak 7 | . 5 7 Combat Bots Only 5 | . 3 5 Max Kills in Single Turn 2 | . 2 2 Gunslinging 1 | . . 1 Exploded . | . . . Melee . | . . . Uniques/NPCs Destroyed . | . . . Combat | -11 -10 -9 -------- Run | Yrd Mat Mat Hostile Shots Fired 338 | . 46 292 Missed 88 | . 11 77 Damage Taken 3005 | . 378 2627 Core 516 | . 108 408 Absorbed by Shields . | . . . Core Remaining (%) 78 | 100 56 . Volleys Fired 239 | . 44 195 Largest 2 | . 2 2 Hottest 100 | . 90 100 Shots Fired 437 | . 87 350 Gun 421 | . 87 334 Cannon . | . . . Launcher . | . . . Special 16 | . . 16 Kinetic 274 | . . 274 Thermal 163 | . 87 76 Explosive . | . . . Electromagnetic . | . . . Robot Hit Streak 13 | . 10 13 Robot Miss Streak 10 | . 5 10 Penetration Max . | . . . Secondary Targets 8 | . . 8 Max Gunslinging Chain 1 | . . 1 Shots Hit Robots 296 | . 58 238 Core Hits 126 | . 30 96 Critical Kills . | . . . Critical Parts Destroyed . | . . . Critical Strikes 4 | . 4 . Burn 4 | . 4 . Melee Attacks . | . . . Impact . | . . . Slashing . | . . . Piercing . | . . . Sneak Attacks . | . . . Combat Hostiles . | . . . Follow-up Attacks . | . . . Damage Inflicted 4090 | . 701 3389 Guns 4090 | . 701 3389 Cannons . | . . . Explosions . | . . . Melee . | . . . Ramming . | . . . Kinetic 2802 | . . 2802 Thermal 1288 | . 701 587 Explosive . | . . . Electromagnetic . | . . . Impact . | . . . Slashing . | . . . Piercing . | . . . Highest Corruption 3 | . 3 . Average Corruption 2 | . 2 . Corruption Purged . | . . . Corruption Blocked . | . . . Effects 10 | . 10 . Message Errors 1 | . 1 . Matter Fused 2 | . 2 . Heat Flow Errors 4 | . 4 . Energy Discharges 1 | . 1 . Data Loss (minor) 1 | . 1 . Weapon Failures 1 | . 1 . Overload Shots . | . . . Overflow Damage . | . . . Projectiles . | . . . Explosions . | . . . Melee . | . . . Knockbacks . | . . . Impact . | . . . Kinetic . | . . . Secondary . | . . . Self-Inflicted Damage . | . . . Shots . | . . . Rammed . | . . . Targets Rammed . | . . . Kicked . | . . . Crushed . | . . . Highest Temperature 396 | . 396 108 Average Temperature 61 | . 159 17 Received Heat Transfer 1248 | . 174 1074 Siege Activations . | . . . Robots Corrupted . | . . . Combat Hostiles . | . . . Parts Fried . | . . . Impact Corruptions . | . . . Robots Melted . | . . . Combat Hostiles . | . . . Parts Melted 10 | . 8 2 Heat Transferred 3583 | . 2155 1428 Parts Sabotaged . | . . . Parts Stolen . | . . . Parts Stripped . | . . . Power Chain Reactions . | . . . Alert | -11 -10 -9 ------- Run | Yrd Mat Mat Peak Influence 759 | . 251 759 Initial 61 | . . 61 Average 324 | . 111 356 Maximum Alert Level 3 | . 1 3 Low Security (%) 20 | 100 86 10 Level 1 54 | . 13 60 Level 2 16 | . . 19 Level 3 8 | . . 9 Level 4 . | . . . Level 5 . | . . . High Security . | . . . Max Security . | . . . Squads Dispatched 10 | . 2 8 Investigation 5 | . 1 4 Extermination . | . . . Reinforcement 3 | . 1 2 Assault 2 | . . 2 Garrison . | . . . Intercept . | . . . Searches Triggered . | . . . Construction Impeded . | . . . Haulers Reinforced . | . . . Active Scanning Responses . | . . . Cargo Convoy Interrupts . | . . . Stealth | -11 -10 -9 --------- Run | Yrd Mat Mat Distress Signals 5 | . 1 4 Communications Jammed . | . . . Distress Signals . | . . . Times Spotted 97 | . 17 80 Peak Tracking Total 5 | . 5 5 Tactical Retreats 6 | . 1 5 Traps | -11 -10 -9 ------- Run | Yrd Mat Mat Traps Triggered 4 | . 3 1 Indirectly . | . . . Trap Hack Attempts . | . . . Triggered . | . . . Disarmed . | . . . Reprogrammed . | . . . Reused . | . . . Traps Extracted . | . . . Installed . | . . . Triggered . | . . . Machines | -11 -10 -9 ---------- Run | Yrd Mat Mat Machines Disabled 2 | . . 2 Max in Single Turn 1 | . . 1 Machines Repaired . | . . . Machines Dismantled . | . . . Machines Sabotaged . | . . . Overloaded Fab Kills . | . . . Hacking | -11 -10 -9 --------- Run | Yrd Mat Mat Machines Accessed 14 | . 5 9 Terminals 13 | . 5 8 Fabricators . | . . . Repair Stations . | . . . Recycling Units 1 | . . 1 Scanalyzers . | . . . Garrison Access . | . . . Total Hacks 40 | . 16 24 Successful 18 | . 8 10 Failed 20 | . 7 13 Catastrophic 2 | . . 2 Database Lockouts 2 | . 1 1 Manual 33 | . 15 18 Terminals 39 | . 16 23 Fabricators . | . . . Repair Stations . | . . . Recycling Units 1 | . . 1 Scanalyzers . | . . . Garrison Access . | . . . Terminal Hacks 9 | . 5 4 Part Schematic 1 | . 1 . Robot Analysis 3 | . 2 1 Prototype ID Bank 1 | . . 1 Branch Access Points 1 | . . 1 Locate Traps 1 | . 1 . Surveillance Status 1 | . 1 . Registered Components 1 | . . 1 Fabricator Hacks . | . . . Repair Station Hacks . | . . . Recycling Unit Hacks 1 | . . 1 Report Inventory 1 | . . 1 Scanalyzer . | . . . Garrison Access Hacks . | . . . Unauthorized Hacks 8 | . 3 5 Terminals 8 | . 3 5 Assimilate 1 | . . 1 Botnet 7 | . 3 4 Fabricators . | . . . Repair Stations . | . . . Recycling Units . | . . . Scanalyzers . | . . . Garrison Access . | . . . Data Cores Recovered 1 | . . 1 Used . | . . . Hacking Detections 13 | . 6 7 Full Trace Events 5 | . . 5 Feedback Events . | . . . Feedback Blocked . | . . . Robot Schematics Acquired . | . . . Robots Built . | . . . Authchips . | . . . Time . | . . . Total Robot Build Rating . | . . . Part Schematics Acquired 1 | . 1 . Parts Built . | . . . Authchips . | . . . Time . | . . . Total Part Build Rating . | . . . Parts Repaired . | . . . Time . | . . . Parts Recycled . | . . . Recycled Matter . | . . . Retrieved Matter . | . . . Retrieved Components . | . . . Parts Scanalyzed . | . . . Part Schematics Acquired . | . . . Parts Damaged . | . . . Bothacking | -11 -10 -9 ------------ Run | Yrd Mat Mat Used RIF Installer . | . . . Robots Hacked . | . . . Non-combat . | . . . Combat . | . . . Robot Hacks Applied . | . . . Relay Couplers Released . | . . . Fabnet Peak Effective % . | . . . Robots Rewired . | . . . Allies Hacked . | . . . Hacks Repelled . | . . . Allies | -11 -10 -9 -------- Run | Yrd Mat Mat Total Allies . | . . . Largest Group . | . . . Highest-Rated Group . | . . . Highest-Rated Ally . | . . . Total Orders . | . . . Ally Attacks . | . . . Total Damage . | . . . Kills . | . . . Allies Corrupted . | . . . Allies Melted . | . . . Intel | -11 -10 -9 ------- Run | Yrd Mat Mat Robot Analysis Total 3 | . 2 1 Derelict Logs Recovered . | . . . Drone Launches . | . . . Drone Recoveries . | . . . Exploration | -11 -10 -9 ------------- Run | Yrd Mat Mat Turns Passed 6635 | 47 796 5792 Spaces Moved 2171 | 49 503 1619 Core 4 | 4 . . Treads 1125 | . . 1125 Legs 368 | . 156 212 Wheels 674 | 45 347 282 Hover . | . . . Flight . | . . . Fastest Speed 50 | 50 80 140 Average Speed 252 | 77 118 299 Slowest Speed 750 | 80 260 750 Overloaded Moves . | . . . Propulsion Burnouts . | . . . Robots Hopped . | . . . Cave-ins Triggered . | . . . Exploration Rate (%) 57 | 3 85 84 Regions Visited 2 Branch Regions . Pre-discovered Areas . | . . . Known Exits Taken . | . . . Unknown Exits Taken 2 | 1 1 . Scrap Searched . | . . . Spaces Dug 14 | . . 14 Terrain Destroyed 14 | . . 14 Melee . | . . . Projectile 14 | . . 14 AOE . | . . . Terrain Rammed . | . . . Walls Destroyed . | . . . Machines Disabled . | . . . Actions | -11 -10 -9 --------- Run | Yrd Mat Mat Total 2854 | 54 614 2186 Wait 315 | . 49 266 Move 2169 | 48 502 1619 Hop . | . . . Pick Up 33 | . 8 25 Fast Attach 26 | 6 3 17 Attach 19 | . 1 18 Detach 18 | . 3 15 Swap 15 | . 3 12 Drop 19 | . . 19 Fire 239 | . 44 195 Melee . | . . . Ram . | . . . Kick . | . . . Crush . | . . . Escape Stasis . | . . . Rewire 1 | . 1 . Trap . | . . . Miscellaneous . | . . . Route ------- -11/Scrapyard -10/Materials (discovered 3 exits: *Mat x2 / [*Min]) -9/Materials (discovered 4 exits: *Mat x3 / Min) History --------- Turn | Location | Event 5 | -11/Scrapyard | Discovered new exit (range 16) 48 | -11/Scrapyard | Entered Materials 316 | -10/Materials | Build established: Mutant 355 | -10/Materials | Discovered new exit (range 9) 486 | -10/Materials | Discovered new exit (range 13) 738 | -10/Materials | Discovered new exit (range 10) 793 | -10/Materials | Central database locked down 844 | -10/Materials | Entered another Materials area 844 | -9/Materials | Evolved 2 slots: Utility x2 1390 | -9/Materials | Build established: Scavenger-Mutant 1986 | -9/Materials | Discovered new exit (range 12) 1992 | -9/Materials | Lost 4 parts (1n2u1w) 2137 | -9/Materials | Identified exit to Materials 2371 | -9/Materials | Discovered exit to Materials (range 8) 2414 | -9/Materials | Build established: Skirmisher 2448 | -9/Materials | Core integrity fell below 50% 4865 | -9/Materials | Discovered exit to Materials (range 13) 5472 | -9/Materials | Build established: Scavenger-Mutant 5644 | -9/Materials | First assault squad dispatched 5777 | -9/Materials | Core integrity fell below 20% 5799 | -9/Materials | Lost 3 parts (2n1u) 6247 | -9/Materials | Identified exit to Mines 6327 | -9/Materials | Central database locked down 6636 | -9/Materials | Destroyed by G-34 Mercenary with Small Laser Last Messages --------------- Trojan loaded successfully. Testing... Terminal linked with 3 systems. Awaiting botnet instructions. >>Access(Branch) Found 1 branch access point: (49,48) Mines Map updated. 06315_ >> Machine Analyzer network decryption results: 06315_ Terminal x1 06327_ Connecting with Terminal... 06327_ ALERT: Central database lockdown, local access denied. 06444_ O-16 Technician: "IFF HANDSHAKE FAILED. SECURING TERMINAL." 06450_ ALERT: Hostiles spotted, dispatching reinforcements to Terminal M009. 06475_ W-16 Scout destroyed. 06482_ Acquired 26 matter. 06494_ A-02 Transporter destroyed. 06628_ Hvy. Ion Engine destroyed. 06629_ Acquired 5 matter. Map ----- +----------------------------------------------------+ | # """"" #???# #??????????????????????# # | | # """"" #??## ##?????????????????????# """ + | | # #??# #?????????????????????# """ # | | # """"" #??# #?????????????????????# """ # | | # """"" #??# #?????????#?########### ?# | | # """"" #??# #?????#### ## ######?# | | # ??????## ##?????# ! # ######## | | ###########??# #??????# # """ """ # | | # #??# #??????# """ # """ """ + | | # #??# #??????# """ # """ """ # | | # #### ###????# """ # #+##+##### | | # ## #????# # # #?? | | # ## ###### # # """ #?? | | # ## # ! ##"######## """ #?? | | # " ## %+*!==!####??????# """ #?? | | ?####+###+## #### #[ =!!#?????????# #?? | | ??# !%! # ## #??# # =! #?????????# #?? | | ??# ! # #########??# # #?????????##"#####?? | | ??# # #??????????#+#######??????????###?????? | | ??# # #??????????# #???????????????????? | | ??# # #??????????# """ ]#???????????????????? | | ??### ### #??????????# """ #???????????????????? | | ????#=#?# #??????????# """ #???????????????????? | | ????# #?# #??????????# #???????????????????? | | ????# #?# #??????????# % #????????????"""?#??? | | ????#=#?# #??###########@####?"""????????""" #??? | | ????#%#?# #??# T % #?"""????????""" #??? | | ????#=#?# #??# < = +?"""???""????? ?### | | ????#=#?# #??# #???????T"???##+## | | ????# #?# #??### #???????""??# | | ????#%#?# #????#^ ^ ^ #???????????# | | ????#%### ###### ^ #???????????# ?? | | ????# """ """gg############# #???? | | ????# """ "" % #???? | | ????# """ """ #???? | | ????# ### m #???? | | ????# #?# #???? | | ????# #?# ### ######## #######+## #???? | | #####+### #?#+#??????## ## [ # #??## | | # ## #???????????# ## # #??# | | #""" ![## #???????????# ## """ + #??# | | #""" *%+ #???????????+ ## """ # #??# | | #"S ![%## #???????????# ## """ # #??# | | #""" / ## #???????????### ## # #??# | | # "" ## #?????????????# ## """ # !#??# | | # =## #?????????????# ## """ # !%#??## | | # %# #?????????????# ## """ # =!#??# | | # =+ #?????????????# ## ###%#??# | | # """ # #####?????????? ?# #?#=#### | | # """ # #?????????? ?#########?# + | +----------------------------------------------------+ Best States ------------- Heat Dissipation 42 Energy Generation 14 Energy Capacity 280 Matter Stores 300 Matter Capacity 300 Sight Range 16 Robot Scan Range 14 Terrain Scan Density 10 Armor Coverage 300 Evasion (%) 44 Recoil Reduction 2 Item Schematics ----------------- Cargo Storage Unit | -10/Materials | Hacked Robot Schematics ------------------ None Fabricated ------------ Nothing Alien Tech Used ----------------- None Achievements -------------- None Challenges ------------ None Game ------ Seed AccelerationScatterJammer Manual? 0 Play Time 00:27:52 Cumulative 51.7 hours Start 2024.04.24 @ 20:01:18 End 2024.04.24 @ 20:28:49 Sessions 1 Manual Loads 0 Difficulty Rogue Special Mode None Game No. 59 Rogue 53 Adventurer 6 Explorer 0 Win Type - Total 0 Types 0/0/0/0/0/0/0/0/0 Lore% 23 Gallery% 39 Achievement% 31 Wizard Run 0 Options --------- Layout 0 ASCII 0 Keyboard 1 Movement Numpad Keybinds 0 Fullscreen 0 Font 12/Smallcaps Map View 76x50 Zoom Use 0% Tactical HUD 1 Map Filters NONE Filters NONE Steam 1 RUN: 7f370887-4467-4579-a993-811f4ba3245a